[Event "Late-Titled-Tuesday-Blitz-December-26-2023"]
[Site "Chess.com"]
[Date "2023.12.26"]
[Round "11"]
[White "GothamChess"]
[Black "Kiborg95"]
[Result "0-1"]
[WhiteElo "2683"]
[BlackElo "2850"]
[TimeControl "180+1"]
[EndTime "16:02:08 PST"]
[Termination "Kiborg95 won by resignation"]

1. e4 {[%clk 0:03:00.9]} 1... d6 {[%clk 0:03:00.6]} 2. d4 {[%clk 0:02:55.3]}
2... Nf6 {[%clk 0:03:00.5]} 3. Nc3 {[%clk 0:02:56]} 3... Nbd7 {[%clk 0:02:59.5]}
4. h3 {[%clk 0:02:55.8]} 4... e5 {[%clk 0:02:59.3]} 5. Nge2 {[%clk 0:02:54.8]}
5... h5 {[%clk 0:02:59]} 6. g3 {[%clk 0:02:52.3]} 6... c6 {[%clk 0:02:58.6]} 7.
Bg2 {[%clk 0:02:50.3]} 7... b5 {[%clk 0:02:58.5]} 8. Bg5 {[%clk 0:02:45.2]} 8...
Bb7 {[%clk 0:02:54]} 9. a3 {[%clk 0:02:43.4]} 9... Be7 {[%clk 0:02:53.9]} 10.
O-O {[%clk 0:02:32.2]} 10... O-O {[%clk 0:02:53.9]} 11. dxe5 {[%clk 0:02:27.9]}
11... dxe5 {[%clk 0:02:53.7]} 12. Qd2 {[%clk 0:02:20.8]} 12... a5 {[%clk
0:02:53.6]} 13. Rad1 {[%clk 0:02:15.8]} 13... Qc7 {[%clk 0:02:53.2]} 14. Qc1
{[%clk 0:01:48.2]} 14... Rfd8 {[%clk 0:02:48.3]} 15. Bf3 {[%clk 0:01:39.3]}
15... g6 {[%clk 0:02:39.9]} 16. Bg2 {[%clk 0:01:37]} 16... Nc5 {[%clk
0:02:35.8]} 17. Rxd8+ {[%clk 0:01:29.3]} 17... Rxd8 {[%clk 0:02:36.7]} 18. Rd1
{[%clk 0:01:29.2]} 18... b4 {[%clk 0:02:35.3]} 19. axb4 {[%clk 0:01:16.5]} 19...
axb4 {[%clk 0:02:36.2]} 20. Na2 {[%clk 0:01:06.6]} 20... Ncxe4 {[%clk
0:02:30.8]} 21. Bxe4 {[%clk 0:00:56.3]} 21... Nxe4 {[%clk 0:02:31.7]} 22. Bxe7
{[%clk 0:00:50.7]} 22... Rxd1+ {[%clk 0:02:27.2]} 23. Qxd1 {[%clk 0:00:51.6]}
23... Qxe7 {[%clk 0:02:27.9]} 24. c3 {[%clk 0:00:39.5]} 24... c5 {[%clk
0:02:18.8]} 25. h4 {[%clk 0:00:29.3]} 25... Qf6 {[%clk 0:02:04.2]} 26. f4 {[%clk
0:00:25.6]} 26... Nxg3 {[%clk 0:01:50.9]} 27. Nxg3 {[%clk 0:00:23.1]} 27... Qxh4
{[%clk 0:01:48.6]} 28. Qd3 {[%clk 0:00:11.8]} 28... exf4 {[%clk 0:01:46.3]} 29.
Nf1 {[%clk 0:00:07.4]} 29... Qh1+ {[%clk 0:01:34.4]} 30. Kf2 {[%clk 0:00:07.8]}
30... Qg2+ {[%clk 0:01:35]} 31. Ke1 {[%clk 0:00:08.3]} 31... Qxb2 {[%clk
0:01:35.6]} 32. Qd8+ {[%clk 0:00:05.1]} 32... Kg7 {[%clk 0:01:34]} 33. Nxb4
{[%clk 0:00:05.7]} 33... Qxc3+ {[%clk 0:01:30.8]} 34. Kf2 {[%clk 0:00:05.2]}
34... cxb4 {[%clk 0:01:29.2]} 35. Nd2 {[%clk 0:00:02.6]} 35... Qe3+ {[%clk
0:01:23.6]} 36. Kf1 {[%clk 0:00:02.9]} 36... Ba6+ {[%clk 0:01:22]} 37. Kg2
{[%clk 0:00:03.3]} 37... Qg3+ {[%clk 0:01:21]} 38. Kh1 {[%clk 0:00:02.4]} 38...
Bb7+ {[%clk 0:01:21.6]} 0-1

[Event "Late-Titled-Tuesday-Blitz-December-26-2023"]
[Site "Chess.com"]
[Date "2023.12.26"]
[Round "11"]
[White "TanitoluwaAps116"]
[Black "GMKrikor"]
[Result "1-0"]
[WhiteElo "2780"]
[BlackElo "2827"]
[TimeControl "180+1"]
[EndTime "16:02:12 PST"]
[Termination "TanitoluwaAps116 won by resignation"]

1. e4 {[%clk 0:02:51.1]} 1... e6 {[%clk 0:03:00.1]} 2. d4 {[%clk 0:02:50.6]}
2... d5 {[%clk 0:03:00.7]} 3. exd5 {[%clk 0:02:51.2]} 3... exd5 {[%clk
0:03:00.8]} 4. Nf3 {[%clk 0:02:46.5]} 4... Nc6 {[%clk 0:02:58.6]} 5. Nc3 {[%clk
0:02:45.5]} 5... Bb4 {[%clk 0:02:55.4]} 6. Bd3 {[%clk 0:02:43.4]} 6... Nge7
{[%clk 0:02:55.4]} 7. O-O {[%clk 0:02:38.3]} 7... O-O {[%clk 0:02:52.8]} 8. Re1
{[%clk 0:02:36.4]} 8... Bf5 {[%clk 0:02:49.6]} 9. Bf4 {[%clk 0:02:33.3]} 9...
Bxc3 {[%clk 0:02:46.4]} 10. bxc3 {[%clk 0:02:31.6]} 10... Qd7 {[%clk 0:02:46.6]}
11. Rb1 {[%clk 0:02:26.2]} 11... b6 {[%clk 0:02:45]} 12. Bb5 {[%clk 0:02:19.4]}
12... Be6 {[%clk 0:02:10.3]} 13. Ne5 {[%clk 0:02:10.7]} 13... Qe8 {[%clk
0:02:09.8]} 14. c4 {[%clk 0:01:47.3]} 14... a6 {[%clk 0:01:49]} 15. Bxc6 {[%clk
0:01:13.2]} 15... Nxc6 {[%clk 0:01:48.8]} 16. cxd5 {[%clk 0:01:13.9]} 16... Bxd5
{[%clk 0:01:49.2]} 17. c4 {[%clk 0:01:08.4]} 17... Be6 {[%clk 0:01:07.1]} 18. d5
{[%clk 0:01:01.6]} 18... Nxe5 {[%clk 0:00:52.6]} 19. Rxe5 {[%clk 0:01:01.5]}
19... Rd8 {[%clk 0:00:40.1]} 20. Qe2 {[%clk 0:00:59]} 20... Bf5 {[%clk
0:00:20.4]} 21. Rxe8 {[%clk 0:00:52.6]} 21... Rfxe8 {[%clk 0:00:21.3]} 22. Qb2
{[%clk 0:00:49.2]} 22... Bxb1 {[%clk 0:00:18.4]} 23. Qxb1 {[%clk 0:00:50.1]}
23... b5 {[%clk 0:00:16]} 24. Bxc7 {[%clk 0:00:46]} 24... Rd7 {[%clk 0:00:15.6]}
25. d6 {[%clk 0:00:46.5]} 25... bxc4 {[%clk 0:00:16]} 26. Kf1 {[%clk 0:00:46]}
26... c3 {[%clk 0:00:13.3]} 27. Qc2 {[%clk 0:00:43.9]} 1-0

[Event "Late-Titled-Tuesday-Blitz-December-26-2023"]
[Site "Chess.com"]
[Date "2023.12.26"]
[Round "11"]
[White "laskakid"]
[Black "aranibos"]
[Result "1-0"]
[WhiteElo "2364"]
[BlackElo "2175"]
[TimeControl "180+1"]
[EndTime "16:02:21 PST"]
[Termination "laskakid won by resignation"]

1. d4 {[%clk 0:03:00.9]} 1... Nf6 {[%clk 0:02:58.1]} 2. c4 {[%clk 0:03:00.9]}
2... c5 {[%clk 0:02:57.4]} 3. d5 {[%clk 0:03:00.5]} 3... b5 {[%clk 0:02:56.4]}
4. cxb5 {[%clk 0:03:00.1]} 4... a6 {[%clk 0:02:56.7]} 5. e3 {[%clk 0:03:00.4]}
5... Bb7 {[%clk 0:02:52.3]} 6. Nc3 {[%clk 0:02:59.2]} 6... g6 {[%clk 0:02:46.1]}
7. a4 {[%clk 0:02:55.5]} 7... axb5 {[%clk 0:02:44.3]} 8. Bxb5 {[%clk 0:02:53.9]}
8... Bg7 {[%clk 0:02:44.4]} 9. Nf3 {[%clk 0:02:50]} 9... O-O {[%clk 0:02:44.2]}
10. O-O {[%clk 0:02:49.4]} 10... Na6 {[%clk 0:02:42.4]} 11. e4 {[%clk
0:02:45.8]} 11... d6 {[%clk 0:02:42.5]} 12. Ra3 {[%clk 0:02:35.2]} 12... Nc7
{[%clk 0:02:38.7]} 13. Bd3 {[%clk 0:02:27.3]} 13... e6 {[%clk 0:02:38.1]} 14.
dxe6 {[%clk 0:02:23.8]} 14... fxe6 {[%clk 0:02:31.6]} 15. Re1 {[%clk 0:02:17]}
15... Bc6 {[%clk 0:02:11.3]} 16. Bg5 {[%clk 0:02:04.1]} 16... Qe8 {[%clk
0:02:05.9]} 17. Bc2 {[%clk 0:01:42.4]} 17... Rd8 {[%clk 0:01:51.4]} 18. a5
{[%clk 0:01:38.4]} 18... h6 {[%clk 0:01:40.7]} 19. Bh4 {[%clk 0:01:36.5]} 19...
g5 {[%clk 0:01:40.5]} 20. Bg3 {[%clk 0:01:36.6]} 20... e5 {[%clk 0:01:40.6]} 21.
Ba4 {[%clk 0:01:27.2]} 21... Ne6 {[%clk 0:01:33.5]} 22. Bxc6 {[%clk 0:01:25.4]}
22... Qxc6 {[%clk 0:01:33.8]} 23. Nd5 {[%clk 0:01:07.8]} 23... Rf7 {[%clk
0:01:27.1]} 24. Qa4 {[%clk 0:00:50.5]} 24... Qa6 {[%clk 0:01:23.2]} 25. Rb3
{[%clk 0:00:43.3]} 25... Nxd5 {[%clk 0:01:23.2]} 26. exd5 {[%clk 0:00:43.1]}
26... Nd4 {[%clk 0:01:22.7]} 27. Nxd4 {[%clk 0:00:41.9]} 27... cxd4 {[%clk
0:01:23.2]} 28. Rb6 {[%clk 0:00:39.1]} 28... Qa8 {[%clk 0:01:17.9]} 29. Qb5
{[%clk 0:00:35.3]} 29... Rc7 {[%clk 0:01:12.5]} 30. a6 {[%clk 0:00:30]} 30...
Rc5 {[%clk 0:01:12.3]} 31. Qb3 {[%clk 0:00:26.2]} 31... Qa7 {[%clk 0:01:10.8]}
32. Ra1 {[%clk 0:00:23.5]} 32... Rdc8 {[%clk 0:01:10.1]} 33. h4 {[%clk
0:00:22.5]} 33... Rc1+ {[%clk 0:01:06.1]} 34. Rxc1 {[%clk 0:00:22.1]} 34...
Rxc1+ {[%clk 0:01:06.4]} 35. Kh2 {[%clk 0:00:22.5]} 35... Ra1 {[%clk 0:00:56.4]}
36. Rb8+ {[%clk 0:00:21.5]} 36... Kf7 {[%clk 0:00:54.7]} 37. Rb7+ {[%clk
0:00:21]} 1-0

[Event "Late-Titled-Tuesday-Blitz-December-26-2023"]
[Site "Chess.com"]
[Date "2023.12.26"]
[Round "11"]
[White "ilushka"]
[Black "Bryanl106"]
[Result "0-1"]
[WhiteElo "2461"]
[BlackElo "2576"]
[TimeControl "180+1"]
[EndTime "16:02:22 PST"]
[Termination "Bryanl106 won on time"]

1. Nf3 {[%clk 0:03:00.9]} 1... Nf6 {[%clk 0:02:57.8]} 2. g3 {[%clk 0:03:01]}
2... g6 {[%clk 0:02:54.9]} 3. b3 {[%clk 0:03:01.3]} 3... Bg7 {[%clk 0:02:55.5]}
4. Bb2 {[%clk 0:03:01.8]} 4... O-O {[%clk 0:02:56.2]} 5. Bg2 {[%clk 0:03:01.2]}
5... d6 {[%clk 0:02:56.3]} 6. d4 {[%clk 0:03:01.1]} 6... a5 {[%clk 0:02:56.7]}
7. c4 {[%clk 0:03:00.7]} 7... a4 {[%clk 0:02:54.4]} 8. O-O {[%clk 0:03:00.5]}
8... c6 {[%clk 0:02:54]} 9. Re1 {[%clk 0:02:58.5]} 9... Qa5 {[%clk 0:02:53.2]}
10. Qd2 {[%clk 0:02:53.7]} 10... Ne4 {[%clk 0:02:49.8]} 11. Qxa5 {[%clk
0:02:52.3]} 11... Rxa5 {[%clk 0:02:50.7]} 12. Nfd2 {[%clk 0:02:38.4]} 12... Nxd2
{[%clk 0:02:48.9]} 13. Nxd2 {[%clk 0:02:39.3]} 13... c5 {[%clk 0:02:42.1]} 14.
e3 {[%clk 0:02:13.1]} 14... Nc6 {[%clk 0:02:40.9]} 15. Bc3 {[%clk 0:01:55]}
15... Ra8 {[%clk 0:01:53.6]} 16. Bxc6 {[%clk 0:01:44.9]} 16... bxc6 {[%clk
0:01:54.5]} 17. Rec1 {[%clk 0:01:44.8]} 17... cxd4 {[%clk 0:01:52.6]} 18. Bxd4
{[%clk 0:01:44.8]} 18... e5 {[%clk 0:01:49.9]} 19. Bc3 {[%clk 0:01:43.9]} 19...
Bf5 {[%clk 0:01:46.3]} 20. e4 {[%clk 0:01:43.6]} 20... Be6 {[%clk 0:01:45.6]}
21. f4 {[%clk 0:01:26.3]} 21... Rfb8 {[%clk 0:01:42]} 22. fxe5 {[%clk
0:01:24.2]} 22... Bxe5 {[%clk 0:01:42.9]} 23. Bxe5 {[%clk 0:01:23.7]} 23... dxe5
{[%clk 0:01:43.8]} 24. Kf2 {[%clk 0:00:53.9]} 24... f6 {[%clk 0:01:36.6]} 25.
Ke3 {[%clk 0:00:43.5]} 25... Kf7 {[%clk 0:01:35.6]} 26. Kd3 {[%clk 0:00:24]}
26... Ke7 {[%clk 0:01:33]} 27. Kc3 {[%clk 0:00:23.7]} 27... Rd8 {[%clk
0:01:28.7]} 28. Nf1 {[%clk 0:00:18.1]} 28... Rd4 {[%clk 0:01:25.8]} 29. Rd1
{[%clk 0:00:10.7]} 29... axb3 {[%clk 0:01:21.5]} 30. axb3 {[%clk 0:00:09.9]}
30... Rxa1 {[%clk 0:01:20.6]} 31. Rxa1 {[%clk 0:00:09.9]} 31... Rxe4 {[%clk
0:01:21.2]} 32. Ra7+ {[%clk 0:00:07.1]} 32... Bd7 {[%clk 0:01:21.7]} 33. Kb4
{[%clk 0:00:03.8]} 33... Re2 {[%clk 0:01:18.2]} 34. h4 {[%clk 0:00:02.9]} 34...
f5 {[%clk 0:01:17.7]} 35. Kc5 {[%clk 0:00:02.3]} 35... f4 {[%clk 0:01:17.7]} 36.
gxf4 {[%clk 0:00:02.1]} 36... exf4 {[%clk 0:01:18.6]} 37. b4 {[%clk 0:00:02.4]}
37... Rf2 {[%clk 0:01:18.6]} 38. b5 {[%clk 0:00:01.3]} 38... cxb5 {[%clk
0:01:19.5]} 39. cxb5 {[%clk 0:00:01.5]} 39... Rxf1 {[%clk 0:01:20]} 40. b6
{[%clk 0:00:02.2]} 40... Rb1 {[%clk 0:01:19.5]} 41. b7 {[%clk 0:00:02.2]} 41...
f3 {[%clk 0:01:19.7]} 42. Ra3 {[%clk 0:00:01.4]} 42... Rb5+ {[%clk 0:01:18.8]}
0-1

[Event "Late-Titled-Tuesday-Blitz-December-26-2023"]
[Site "Chess.com"]
[Date "2023.12.26"]
[Round "11"]
[White "egnfanclub"]
[Black "ExchangeAB"]
[Result "0-1"]
[WhiteElo "2377"]
[BlackElo "2507"]
[TimeControl "180+1"]
[EndTime "16:02:26 PST"]
[Termination "ExchangeAB won by resignation"]

1. e4 {[%clk 0:03:00.9]} 1... c6 {[%clk 0:02:59.9]} 2. d4 {[%clk 0:03:00.5]}
2... d5 {[%clk 0:03:00.8]} 3. exd5 {[%clk 0:03:01.3]} 3... cxd5 {[%clk
0:03:00.9]} 4. c4 {[%clk 0:03:01.9]} 4... Nf6 {[%clk 0:03:01.4]} 5. Nc3 {[%clk
0:03:02.5]} 5... e6 {[%clk 0:03:01.1]} 6. Nf3 {[%clk 0:03:02.7]} 6... Bb4 {[%clk
0:03:00.9]} 7. cxd5 {[%clk 0:03:00.9]} 7... Nxd5 {[%clk 0:03:00.7]} 8. Qc2
{[%clk 0:03:01.2]} 8... O-O {[%clk 0:03:00.2]} 9. Bd3 {[%clk 0:03:01.4]} 9... h6
{[%clk 0:03:00]} 10. O-O {[%clk 0:02:58.1]} 10... Nc6 {[%clk 0:03:00.1]} 11. a3
{[%clk 0:02:36.2]} 11... Be7 {[%clk 0:02:58.8]} 12. Qe2 {[%clk 0:02:31.6]} 12...
Nf6 {[%clk 0:02:52.5]} 13. Rd1 {[%clk 0:02:24.1]} 13... b6 {[%clk 0:02:51.4]}
14. Bf4 {[%clk 0:02:10.7]} 14... Bb7 {[%clk 0:02:50.3]} 15. Rac1 {[%clk
0:02:09.5]} 15... Nd5 {[%clk 0:02:37.7]} 16. Nxd5 {[%clk 0:02:06.1]} 16... Qxd5
{[%clk 0:02:37]} 17. Be4 {[%clk 0:02:04.2]} 17... Qd7 {[%clk 0:02:30.8]} 18.
Bxc6 {[%clk 0:02:02.4]} 18... Qxc6 {[%clk 0:02:05.3]} 19. Rxc6 {[%clk
0:02:01.1]} 19... Bxc6 {[%clk 0:02:06.2]} 20. Rc1 {[%clk 0:01:56.2]} 20... Bd5
{[%clk 0:02:05.9]} 21. Ne5 {[%clk 0:01:50.6]} 21... Rfc8 {[%clk 0:02:03.2]} 22.
Qd2 {[%clk 0:01:34.4]} 22... g5 {[%clk 0:01:45.3]} 23. Bg3 {[%clk 0:01:27.4]}
23... Kg7 {[%clk 0:01:45]} 24. f3 {[%clk 0:01:27.1]} 24... f6 {[%clk 0:01:42.5]}
25. Nd3 {[%clk 0:01:26.7]} 25... a5 {[%clk 0:01:39.6]} 26. h4 {[%clk 0:01:17.4]}
26... Kf7 {[%clk 0:01:38.6]} 27. Nf2 {[%clk 0:01:13.4]} 27... Bb7 {[%clk
0:01:24.3]} 28. hxg5 {[%clk 0:01:10.5]} 28... hxg5 {[%clk 0:01:23.9]} 29. Bc7
{[%clk 0:01:10.3]} 29... b5 {[%clk 0:01:14.8]} 30. Ne4 {[%clk 0:01:06.9]} 30...
Bd5 {[%clk 0:01:11.5]} 31. Nd6+ {[%clk 0:01:01.4]} 31... Bxd6 {[%clk 0:01:11.2]}
32. Bxd6 {[%clk 0:01:02.3]} 32... a4 {[%clk 0:01:06.7]} 33. Rxc8 {[%clk
0:00:57.9]} 33... Rxc8 {[%clk 0:01:06.1]} 34. Qa5 {[%clk 0:00:58.5]} 34... Rc1+
{[%clk 0:01:01.5]} 35. Kh2 {[%clk 0:00:55.5]} 35... Bc4 {[%clk 0:01:01.9]} 36.
Qc7+ {[%clk 0:00:53.6]} 36... Kg6 {[%clk 0:01:01.6]} 37. Qd8 {[%clk 0:00:43.6]}
37... e5 {[%clk 0:00:36.7]} 38. Qg8+ {[%clk 0:00:41.4]} 38... Bxg8 {[%clk
0:00:36.1]} 0-1

[Event "Late-Titled-Tuesday-Blitz-December-26-2023"]
[Site "Chess.com"]
[Date "2023.12.26"]
[Round "11"]
[White "Msb2"]
[Black "German_Bazeev"]
[Result "1-0"]
[WhiteElo "3025"]
[BlackElo "2857"]
[TimeControl "180+1"]
[EndTime "16:02:35 PST"]
[Termination "Msb2 won by resignation"]

1. d4 {[%clk 0:03:00.9]} 1... d6 {[%clk 0:02:57.1]} 2. Nf3 {[%clk 0:03:00.9]}
2... Bg4 {[%clk 0:02:56.5]} 3. e4 {[%clk 0:03:00.4]} 3... Nf6 {[%clk 0:02:55.7]}
4. Nc3 {[%clk 0:03:00.9]} 4... e6 {[%clk 0:02:46.3]} 5. h3 {[%clk 0:03:01]} 5...
Bh5 {[%clk 0:02:46]} 6. Qe2 {[%clk 0:03:01.6]} 6... Nc6 {[%clk 0:02:41.3]} 7. g4
{[%clk 0:02:53]} 7... Bg6 {[%clk 0:02:40.6]} 8. h4 {[%clk 0:02:51.4]} 8... h5
{[%clk 0:02:38]} 9. g5 {[%clk 0:02:51.4]} 9... Nd7 {[%clk 0:02:31.3]} 10. Bh3
{[%clk 0:02:49.8]} 10... Be7 {[%clk 0:02:25.6]} 11. O-O {[%clk 0:02:37.6]} 11...
e5 {[%clk 0:02:18.7]} 12. d5 {[%clk 0:02:33.5]} 12... Ncb8 {[%clk 0:02:05.9]}
13. Be3 {[%clk 0:02:28.5]} 13... a6 {[%clk 0:01:55.1]} 14. a4 {[%clk 0:02:28.5]}
14... O-O {[%clk 0:01:53]} 15. Nd2 {[%clk 0:02:27.6]} 15... Qe8 {[%clk
0:01:34.8]} 16. Nc4 {[%clk 0:02:22.5]} 16... f5 {[%clk 0:01:32.5]} 17. exf5
{[%clk 0:02:17.4]} 17... Bxf5 {[%clk 0:01:32.6]} 18. Bxf5 {[%clk 0:02:18.3]}
18... Rxf5 {[%clk 0:01:33.3]} 19. Ne4 {[%clk 0:02:19.2]} 19... g6 {[%clk
0:00:52.7]} 20. Ng3 {[%clk 0:02:18.3]} 20... Rf8 {[%clk 0:00:53.3]} 21. Rae1
{[%clk 0:02:18.2]} 21... b5 {[%clk 0:00:44.4]} 22. axb5 {[%clk 0:02:12.9]} 22...
axb5 {[%clk 0:00:45.3]} 23. Nd2 {[%clk 0:02:13.4]} 23... Nb6 {[%clk 0:00:45.9]}
24. Bxb6 {[%clk 0:02:01.7]} 24... cxb6 {[%clk 0:00:46.8]} 25. f4 {[%clk
0:02:00.1]} 25... Ra4 {[%clk 0:00:23.8]} 26. Nde4 {[%clk 0:01:48]} 26... Nd7
{[%clk 0:00:20.7]} 27. f5 {[%clk 0:01:47.2]} 27... Nc5 {[%clk 0:00:19.4]} 28. f6
{[%clk 0:01:41.6]} 28... Bd8 {[%clk 0:00:19.3]} 29. b3 {[%clk 0:01:25.1]} 29...
Rd4 {[%clk 0:00:17.6]} 30. f7+ {[%clk 0:01:04.9]} 30... Rxf7 {[%clk 0:00:15.2]}
31. Nxd6 {[%clk 0:01:05.5]} 31... Rxf1+ {[%clk 0:00:15.9]} 32. Rxf1 {[%clk
0:01:06.4]} 32... Qd7 {[%clk 0:00:16.5]} 33. Qxe5 {[%clk 0:01:02.4]} 33... Rg4
{[%clk 0:00:14.7]} 34. Rf7 {[%clk 0:00:55.2]} 34... Qxf7 {[%clk 0:00:13]} 35.
Nxf7 {[%clk 0:00:56.1]} 35... Kxf7 {[%clk 0:00:13.9]} 36. Kf2 {[%clk 0:00:50.8]}
36... Nd7 {[%clk 0:00:12.5]} 37. Qe6+ {[%clk 0:00:50.9]} 1-0

[Event "Late-Titled-Tuesday-Blitz-December-26-2023"]
[Site "Chess.com"]
[Date "2023.12.26"]
[Round "11"]
[White "SCIM"]
[Black "Onthequiet"]
[Result "1-0"]
[WhiteElo "2514"]
[BlackElo "2419"]
[TimeControl "180+1"]
[EndTime "16:02:39 PST"]
[Termination "SCIM won on time"]

1. d4 {[%clk 0:03:00.9]} 1... d5 {[%clk 0:02:59.2]} 2. c4 {[%clk 0:03:00.3]}
2... e6 {[%clk 0:02:58.7]} 3. Nf3 {[%clk 0:03:00.6]} 3... Nf6 {[%clk 0:02:58.6]}
4. g3 {[%clk 0:03:01.4]} 4... dxc4 {[%clk 0:02:56]} 5. Bg2 {[%clk 0:03:02.3]}
5... c6 {[%clk 0:02:56]} 6. O-O {[%clk 0:03:03.2]} 6... b5 {[%clk 0:02:52.6]} 7.
b3 {[%clk 0:02:59.9]} 7... cxb3 {[%clk 0:02:51.6]} 8. axb3 {[%clk 0:03:00.8]}
8... Bb7 {[%clk 0:02:51.4]} 9. Ne5 {[%clk 0:02:52.7]} 9... Be7 {[%clk
0:02:49.2]} 10. Nc3 {[%clk 0:02:50.9]} 10... a6 {[%clk 0:02:48.8]} 11. e4 {[%clk
0:02:44.7]} 11... O-O {[%clk 0:02:47.6]} 12. Re1 {[%clk 0:02:23]} 12... Qc8
{[%clk 0:02:41.3]} 13. Bb2 {[%clk 0:02:16.9]} 13... Rd8 {[%clk 0:02:37.6]} 14.
Rc1 {[%clk 0:02:14.7]} 14... Nbd7 {[%clk 0:02:36.4]} 15. Nf3 {[%clk 0:02:08.7]}
15... c5 {[%clk 0:02:29.3]} 16. d5 {[%clk 0:02:07]} 16... Nf8 {[%clk 0:02:22.7]}
17. Qe2 {[%clk 0:02:01]} 17... b4 {[%clk 0:02:11.7]} 18. Na4 {[%clk 0:02:00.1]}
18... Qc7 {[%clk 0:01:27.1]} 19. d6 {[%clk 0:01:48.9]} 19... Bxd6 {[%clk
0:01:21.3]} 20. e5 {[%clk 0:01:49.2]} 20... Be7 {[%clk 0:01:07.2]} 21. exf6
{[%clk 0:01:48.7]} 21... gxf6 {[%clk 0:01:07.8]} 22. Nh4 {[%clk 0:01:42.5]}
22... Bxg2 {[%clk 0:00:56.7]} 23. Nxg2 {[%clk 0:01:41.8]} 23... Ng6 {[%clk
0:00:53.6]} 24. h4 {[%clk 0:01:40.2]} 24... Rd5 {[%clk 0:00:26.2]} 25. Ne3
{[%clk 0:01:34.4]} 25... Rdd8 {[%clk 0:00:14.9]} 26. Ng4 {[%clk 0:01:30.1]}
26... f5 {[%clk 0:00:14.5]} 27. Nf6+ {[%clk 0:01:20.1]} 27... Bxf6 {[%clk
0:00:12.9]} 28. Bxf6 {[%clk 0:01:21]} 28... Rd5 {[%clk 0:00:11.7]} 29. h5 {[%clk
0:01:19.4]} 29... Nf8 {[%clk 0:00:10.8]} 30. Qe3 {[%clk 0:01:18.2]} 30... f4
{[%clk 0:00:05.2]} 31. Qxf4 {[%clk 0:01:12.5]} 31... Qxf4 {[%clk 0:00:04.9]} 32.
gxf4 {[%clk 0:01:10.5]} 32... Rxh5 {[%clk 0:00:03.7]} 33. Rxc5 {[%clk
0:01:08.5]} 33... Rh6 {[%clk 0:00:02.4]} 34. Rg5+ {[%clk 0:01:04.8]} 34... Rg6
{[%clk 0:00:02.4]} 35. Rd1 {[%clk 0:00:53.2]} 35... h6 {[%clk 0:00:02]} 36. Rg3
{[%clk 0:00:50.3]} 1-0

[Event "Late-Titled-Tuesday-Blitz-December-26-2023"]
[Site "Chess.com"]
[Date "2023.12.26"]
[Round "11"]
[White "lukazz029"]
[Black "Viktor_Poddubnyi"]
[Result "1-0"]
[WhiteElo "2040"]
[BlackElo "2291"]
[TimeControl "180+1"]
[EndTime "16:02:40 PST"]
[Termination "lukazz029 won on time"]

1. e4 {[%clk 0:03:00.9]} 1... g6 {[%clk 0:03:00.2]} 2. d4 {[%clk 0:02:58.6]}
2... Bg7 {[%clk 0:03:00.6]} 3. c4 {[%clk 0:02:58.2]} 3... Nc6 {[%clk 0:03:00]}
4. Nf3 {[%clk 0:02:57]} 4... e5 {[%clk 0:02:59.6]} 5. d5 {[%clk 0:02:56.1]} 5...
Nd4 {[%clk 0:02:59.9]} 6. Nxd4 {[%clk 0:02:54.1]} 6... exd4 {[%clk 0:03:00.8]}
7. Be2 {[%clk 0:02:50]} 7... d6 {[%clk 0:02:59.1]} 8. O-O {[%clk 0:02:49.7]}
8... c5 {[%clk 0:02:49.7]} 9. dxc6 {[%clk 0:02:47.2]} 9... bxc6 {[%clk
0:02:49.1]} 10. f4 {[%clk 0:02:38.3]} 10... Ne7 {[%clk 0:02:12.7]} 11. Nd2
{[%clk 0:02:35.7]} 11... O-O {[%clk 0:02:02.3]} 12. Nf3 {[%clk 0:02:34.6]} 12...
c5 {[%clk 0:02:00.8]} 13. Bd2 {[%clk 0:02:31.4]} 13... Rb8 {[%clk 0:01:43.4]}
14. Qc2 {[%clk 0:02:25.9]} 14... Qc7 {[%clk 0:01:40.8]} 15. Bd3 {[%clk
0:02:24.4]} 15... f5 {[%clk 0:01:25.4]} 16. Rae1 {[%clk 0:02:20.1]} 16... fxe4
{[%clk 0:01:22.4]} 17. Bxe4 {[%clk 0:02:19.9]} 17... Nf5 {[%clk 0:01:20.6]} 18.
b3 {[%clk 0:02:16.6]} 18... Bd7 {[%clk 0:01:11.1]} 19. Ng5 {[%clk 0:02:14]}
19... h6 {[%clk 0:00:31.2]} 20. Bd5+ {[%clk 0:02:10.7]} 20... Kh8 {[%clk
0:00:31]} 21. Nf7+ {[%clk 0:02:10.2]} 21... Kh7 {[%clk 0:00:25.8]} 22. g4 {[%clk
0:02:06.5]} 22... Ne3 {[%clk 0:00:19.7]} 23. Bxe3 {[%clk 0:02:06.4]} 23... dxe3
{[%clk 0:00:19.7]} 24. f5 {[%clk 0:01:50.6]} 24... gxf5 {[%clk 0:00:18]} 25.
gxf5 {[%clk 0:01:50.2]} 25... Bf6 {[%clk 0:00:15.8]} 26. Kh1 {[%clk 0:01:36.5]}
26... Bc6 {[%clk 0:00:15.2]} 27. Nxh6 {[%clk 0:01:26.8]} 27... Bxd5+ {[%clk
0:00:14.2]} 28. cxd5 {[%clk 0:01:26.4]} 28... Kxh6 {[%clk 0:00:14.3]} 29. Qg2
{[%clk 0:01:26.4]} 29... Rg8 {[%clk 0:00:04.1]} 30. Qh3+ {[%clk 0:01:25.1]}
30... Kg7 {[%clk 0:00:04]} 31. Rg1+ {[%clk 0:01:24.3]} 31... Kf7 {[%clk
0:00:04.4]} 32. Qh5+ {[%clk 0:01:23.9]} 32... Kf8 {[%clk 0:00:04.1]} 33. Rg6
{[%clk 0:00:56]} 33... Qf7 {[%clk 0:00:01.3]} 34. Rxe3 {[%clk 0:00:52.2]} 1-0